Cogmind - Beta 15 X1 @@@ ROGUE MODE // 2024.11.15 @ 12:14:49 Player: H3-RMN Result: Destroyed by 6C-1VX(p) with EM Pulse Gun Performance ------------- Evolutions (0) 0 Regions Visited (3) 600 Robots Destroyed (43) 215 Value Destroyed (1029) 1029 Prototype IDs (17) 340 Alien Tech Used (0) 0 Bonus (254) 254 TOTAL SCORE: 2438 Bonus ------- Registered with UFD 300 Friendly Fire -46 Cogmind --------- Core Integrity 0/250 Matter 226/300 Energy 57/100 System Corruption 0% Temperature Cool (33) Movement Walking (130) Location -8/Scraptown Parts ------- > --- POWER (1) -------- Subdweller Power Source > --- PROPULSION (2) --- Cargo Legs > --- UTILITY (2+2) ---- Large Storage Unit Subdweller Optics > --- WEAPON (2) ------- (None) > --- INVENTORY (15) --- Light Treads Light Treads Light Treads Medium Matter Pod (100) Transport Network Coupler Hacking Suite Hacking Suite Particle Cannon Particle Cannon Particle Cannon Subdweller Beam Cannon Slug Cannon Grenade Launcher Peak State ------------ > --- POWER ------------ Subdweller Power Source > --- PROPULSION ------- Cargo Legs > --- UTILITY ---------- Large Storage Unit Subdweller Optics > --- WEAPON ----------- Subdweller Beam Cannon Slug Cannon > --- INVENTORY -------- Light Treads Light Treads Light Treads Medium Matter Pod Transport Network Coupler Scrap Shield Hacking Suite Hacking Suite Beam Cannon Particle Cannon Particle Cannon Particle Cannon EMP Blaster Grenade Launcher [Rating: 29] Favorites ----------- Power Subdweller Power Source Engine Subdweller Power Source Propulsion Cargo Legs Treads Light Treads Leg Cargo Legs Wheel Armored Wheel Utility Large Storage Unit Device Subdweller Optics Storage Large Storage Unit Processor Visual Processing Unit Protection Light Armor Plating Weapon Beam Cannon Energy Gun Small Laser Energy Cannon Beam Cannon Ballistic Gun Light Assault Rifle Ballistic Cannon Light Cannon Launcher EMP Blaster Special Melee Weapon Datajack Build | -11 -10 -10 -8 ------- Run | Yrd Mat Sub Scr Slots Evolved . | . . . . Power . | . . . . Propulsion . | . . . . Utility . | . . . . Weapon . | . . . . Parts Attached 39 | 8 20 11 . Power 7 | 1 3 3 . Engine 7 | 1 3 3 . Core . | . . . . Reactor . | . . . . Propulsion 8 | 2 5 1 . Treads 1 | 1 . . . Leg 1 | . . 1 . Wheel 6 | 1 5 . . Hover . | . . . . Flight . | . . . . Utility 10 | 3 6 1 . Device 6 | 2 3 1 . Storage 2 | 1 1 . . Processor 1 | . 1 . . Hackware . | . . . . Protection 1 | . 1 . . Artifact . | . . . . Weapon 14 | 2 6 6 . Energy Gun 1 | 1 . . . Energy Cannon 5 | . 2 3 . Ballistic Gun 2 | 1 1 . . Ballistic Cannon 2 | . 1 1 . Launcher 3 | . 2 1 . Special Weapon . | . . . . Impact Weapon . | . . . . Slashing Weapon . | . . . . Piercing Weapon . | . . . . Special Melee Weapon 1 | . . 1 . Unidentified Prototypes . | . . . . Parts Lost 5 | . 2 1 2 Power . | . . . . Propulsion . | . . . . Utility 3 | . 2 1 . Weapon 2 | . . . 2 Highest Loss Streak 2 | . 1 1 2 To Critical Strikes . | . . . . Average Backups 12 | 3 9 14 13 Power . | . . . . Propulsion 2 | 1 1 3 3 Utility 3 | . 1 5 4 Weapon 5 | 1 4 5 6 Tool/Special . | . . . . Unused Backups 10 | . 1 . 9 Power . | . . . . Propulsion 3 | . . . 3 Utility 4 | . . . 4 Weapon 3 | . 1 . 2 Tool/Special . | . . . . Average Slot Usage (%) 76 | . 98 73 66 Engine 11 | . 13 11 11 Treads 1 | . 5 . . Leg 7 | . . 8 11 Wheel 7 | . 21 6 . Device 10 | . 8 11 11 Storage 12 | . 14 11 11 Protection 1 | . 4 . . Energy Cannon 11 | . 9 12 11 Ballistic Gun 3 | . 13 . . Ballistic Cannon 3 | . 4 5 . Launcher 5 | . . 5 11 Peak Build Rating 29 | 7 12 29 26 Average Rating 20 | 5 8 23 25 On Entrance 10 | . 7 10 26 Naked Turns . | . . . . Heaviest Build 42 | 13 32 42 34 Greatest Support 55 | 20 24 55 55 Greatest Overweight (x) 5 | 1 5 1 . Average Overweight (x) . | . . . . Largest Inventory Capacity 15 | 8 15 15 15 Average Capacity 13 | 6 10 15 15 Most Carried 15 | 6 15 15 15 Average Carried 13 | 3 9 14 14 Final Capacity 15 | 8 15 15 15 Final Carried 15 | 5 15 15 13 Class Distribution -------------------- 100% | Mutant Dominant Class ---------------- Mutant | -10/Materials Mutant | -10/Subcaves Mutant | -8/Scraptown Resources | -11 -10 -10 -8 ----------- Run | Yrd Mat Sub Scr Matter Collected 1455 | 291 617 509 38 Remotely 90 | 90 . . . Salvage Created 1533 | 168 768 597 . Parts 109 | 16 58 35 . Haulers Intercepted 1 | . 1 . . Recyclers Shooed 1 | 1 . . . Parts Field Recycled . | . . . . Retrieved Matter . | . . . . Parts Self-Destructed 5 | . . 5 . Prevented . | . . . . Kills | -11 -10 -10 -8 ------- Run | Yrd Mat Sub Scr Combat Hostiles Destroyed 28 | . 15 13 . Guns 4 | . 4 . . Cannons 12 | . 7 5 . AOE 10 | . 3 7 . Classes Destroyed 10 | 2 6 2 . Builder 2 | . 2 . . Tunneler 4 | 4 . . . Hauler 1 | . 1 . . Recycler 3 | 1 2 . . Operator 2 | . 2 . . Watcher 3 | . 3 . . Swarmer 7 | . 6 1 . Grunt 10 | . 9 1 . Sentry 1 | . . 1 . Subdweller 10 | . . 10 . Best Kill Streak 4 | 4 4 3 . Combat Bots Only 4 | . 4 3 . Max Kills in Single Turn 3 | 1 3 1 . Gunslinging . | . . . . Exploded 3 | . 3 1 . Melee . | . . . . Uniques/NPCs Destroyed . | . . . . Combat | -11 -10 -10 -8 -------- Run | Yrd Mat Sub Scr Hostile Shots Fired 121 | . 64 47 10 Missed 31 | . 16 14 1 Damage Taken 1641 | . 530 780 331 Core 252 | . 87 154 11 Absorbed by Shields . | . . . . Regen/Repaired (Parts) 94 | . 94 . . Core Remaining (%) 100 | 100 . . . Volleys Fired 182 | 11 69 101 1 Largest 2 | 2 2 2 1 Hottest 140 | 60 128 140 33 Shots Fired 286 | 22 136 127 1 Gun 89 | 22 67 . . Cannon 166 | . 67 99 . Launcher 31 | . 2 28 1 Special . | . . . . Kinetic 127 | 11 82 34 . Thermal 128 | 11 52 65 . Explosive 6 | . 2 4 . Electromagnetic 25 | . . 24 1 Robot Hit Streak 11 | 6 11 7 . Robot Miss Streak 7 | 4 7 3 1 Penetration Max . | . . . . Secondary Targets . | . . . . Shots Hit Robots 131 | 12 79 40 . Core Hits 64 | 7 35 21 1 Critical Kills . | . . . . Critical Parts Destroyed . | . . . . Critical Strikes 2 | . 1 1 . Destroy 1 | . . 1 . Blast 1 | . 1 . . Melee Attacks 1 | . . 1 . Impact . | . . . . Slashing . | . . . . Piercing . | . . . . Sneak Attacks 1 | . . 1 . Combat Hostiles . | . . . . Follow-up Attacks . | . . . . Damage Inflicted 2508 | 125 1381 991 11 Guns 463 | 125 338 . . Cannons 1315 | . 876 439 . Explosions 730 | . 167 552 11 Melee . | . . . . Ramming . | . . . . Kinetic 672 | 30 541 101 . Thermal 1106 | 95 673 338 . Explosive 339 | . 167 172 . Electromagnetic 391 | . . 380 11 Impact . | . . . . Slashing . | . . . . Piercing . | . . . . Highest Corruption . | . . . . Average Corruption . | . . . . Corruption Purged . | . . . . Corruption Blocked . | . . . . Overload Shots . | . . . . Overflow Damage 14 | . 14 . . Projectiles 14 | . 14 . . Explosions . | . . . . Melee . | . . . . Knockbacks 4 | . 2 2 . Impact . | . . . . Kinetic 4 | . 2 2 . Secondary . | . . . . Self-Inflicted Damage 65 | . . 65 . Shots 6 | . . 6 . Rammed . | . . . . Targets Rammed . | . . . . Kicked . | . . . . Crushed . | . . . . Highest Temperature 391 | 60 391 24 28 Average Temperature 94 | 30 119 4 23 Received Heat Transfer 376 | . 246 69 61 Effects 4 | . 4 . . Shutdowns 1 | . 1 . . Energy Bleed 1 | . 1 . . Interference 1 | . 1 . . Short Circuit 1 | . 1 . . Siege Activations . | . . . . Martial Activations . | . . . . Shielding Activations . | . . . . Robots Disrupted . | . . . . Combat Hostiles . | . . . . Robots Corrupted 1 | . . 1 . Combat Hostiles 1 | . . 1 . Parts Fried 2 | . . 2 . Impact Corruptions . | . . . . Robots Melted 1 | . 1 . . Combat Hostiles 1 | . 1 . . Parts Melted 5 | . 5 . . Heat Transferred 2186 | 225 1332 629 . Parts Sabotaged . | . . . . Parts Stolen . | . . . . Parts Stripped . | . . . . Power Chain Reactions . | . . . . Alert | -11 -10 -10 -8 ------- Run | Yrd Mat Sub Scr Maximum Alert Level . | . . . . Low Security (%) 100 | 100 100 . . Level 1 . | . . . . Level 2 . | . . . . Level 3 . | . . . . Level 4 . | . . . . Level 5 . | . . . . High Security . | . . . . Max Security . | . . . . Peak Influence 156 | 10 156 . . Initial . | . . . . Average 59 | 1 64 . . Influence Increases 572 | 25 487 60 . Destroy 0b10 Robot/C 360 | . 300 60 . Destroy 0b10 Robot/NC 75 | 25 50 . . Destroy Leader 58 | . 58 . . Successful Hack 16 | . 16 . . Disable Machine 15 | . 15 . . Destroy Structure 18 | . 18 . . Lose Combat Pursuer 30 | . 30 . . Influence Decreases 553 | 25 449 79 . Time Decay 536 | 25 432 79 . Lost Part 17 | . 17 . . Squads Dispatched 2 | . 2 . . Investigation 2 | . 2 . . Extermination . | . . . . Reinforcement . | . . . . Assault . | . . . . Garrison . | . . . . Intercept . | . . . . Searches Triggered . | . . . . Construction Impeded . | . . . . Haulers Reinforced . | . . . . Active Scanning Responses . | . . . . Cargo Convoy Interrupts . | . . . . Stealth | -11 -10 -10 -8 --------- Run | Yrd Mat Sub Scr Distress Signals 1 | . 1 . . Communications Jammed . | . . . . Distress Signals . | . . . . Times Spotted 49 | . 28 15 6 Peak Tracking Total 6 | . 6 3 6 Tactical Retreats 2 | . 1 1 . Traps | -11 -10 -10 -8 ------- Run | Yrd Mat Sub Scr Traps Triggered 9 | . 7 2 . Indirectly . | . . . . Trap Hack Attempts . | . . . . Triggered . | . . . . Disarmed . | . . . . Reprogrammed . | . . . . Reused . | . . . . Traps Extracted . | . . . . Installed . | . . . . Triggered . | . . . . Machines | -11 -10 -10 -8 ---------- Run | Yrd Mat Sub Scr Machines Disabled 2 | . 1 1 . Max in Single Turn 1 | . 1 1 . Machines Repaired . | . . . . Machines Dismantled . | . . . . Machines Sabotaged . | . . . . Overloaded Fab Kills . | . . . . Hacking | -11 -10 -10 -8 --------- Run | Yrd Mat Sub Scr Machines Accessed 12 | . 9 1 2 Terminals 7 | . 7 . . Fabricators . | . . . . Repair Stations 1 | . 1 . . Recycling Units 1 | . 1 . . Scanalyzers . | . . . . Garrison Access . | . . . . Total Hacks 30 | . 23 1 6 Successful 19 | . 12 1 6 Failed 11 | . 11 . . Catastrophic 2 | . 2 . . Database Lockouts . | . . . . Manual 12 | . 12 . . Terminals 19 | . 19 . . Fabricators . | . . . . Repair Stations 2 | . 2 . . Recycling Units 2 | . 2 . . Scanalyzers . | . . . . Garrison Access . | . . . . Terminal Hacks 14 | . 7 1 6 Record 6 | . . . 6 Part Schematic 2 | . 2 . . Robot Analysis 2 | . 2 . . Locate Traps 1 | . 1 . . Hauler Manifests 1 | . 1 . . Zone Layout 1 | . 1 . . Derelict Proto ID Bank 1 | . . 1 . Fabricator Hacks . | . . . . Repair Station Hacks 2 | . 2 . . Scan Component 1 | . 1 . . Repair 1 | . 1 . . Recycling Unit Hacks 2 | . 2 . . Report Inventory 1 | . 1 . . Retrieve Components 1 | . 1 . . Scanalyzer . | . . . . Garrison Access Hacks . | . . . . Unauthorized Hacks 1 | . 1 . . Terminals 1 | . 1 . . Skim 1 | . 1 . . Fabricators . | . . . . Repair Stations . | . . . . Recycling Units . | . . . . Scanalyzers . | . . . . Garrison Access . | . . . . Data Cores Recovered 2 | . 2 . . Used 1 | . 1 . . Hacking Detections 5 | . 5 . . Full Trace Events 2 | . 2 . . Feedback Events . | . . . . Feedback Blocked . | . . . . Robot Schematics Acquired . | . . . . Robots Built . | . . . . Authchips . | . . . . Time . | . . . . Total Robot Build Rating . | . . . . Part Schematics Acquired 1 | . 1 . . Parts Built . | . . . . Authchips . | . . . . Time . | . . . . Total Part Build Rating . | . . . . Parts Repaired 1 | . 1 . . Time 26 | . 26 . . Parts Recycled . | . . . . Recycled Matter . | . . . . Retrieved Matter . | . . . . Retrieved Components 3 | . 3 . . Parts Scanalyzed . | . . . . Part Schematics Acquired . | . . . . Parts Damaged . | . . . . Bothacking | -11 -10 -10 -8 ------------ Run | Yrd Mat Sub Scr Used RIF Installer . | . . . . Robots Hacked 1 | . . 1 . Non-combat 1 | . . 1 . Combat . | . . . . Robot Hacks Applied 1 | . . 1 . parse_system 1 | . . 1 . Relay Couplers Released . | . . . . Fabnet Peak Effective % . | . . . . Robots Rewired . | . . . . Allies Hacked . | . . . . Hacks Repelled . | . . . . Allies | -11 -10 -10 -8 -------- Run | Yrd Mat Sub Scr Total Allies . | . . . . Largest Group . | . . . . Highest-Rated Group . | . . . . Highest-Rated Ally . | . . . . Total Orders . | . . . . Ally Attacks . | . . . . Total Damage . | . . . . Kills . | . . . . Allies Corrupted . | . . . . Allies Melted . | . . . . Intel | -11 -10 -10 -8 ------- Run | Yrd Mat Sub Scr Active Infowar (turns) 1069 | 8 297 764 . Optics 638 | . 8 630 . Structural 139 | . 5 134 . Seismic 292 | 8 284 . . Robot Analysis Total 2 | . 2 . . Derelict Logs Recovered 5 | . . 2 3 Drone Launches . | . . . . Drone Recoveries . | . . . . Exploration | -11 -10 -10 -8 ------------- Run | Yrd Mat Sub Scr Turns Passed 4852 | 113 1139 1988 1612 Spaces Moved 3306 | 72 746 1342 1146 Core 5 | 2 3 . . Treads 90 | 1 89 . . Legs 2114 | . . 968 1146 Wheels 1097 | 69 654 374 . Hover . | . . . . Flight . | . . . . Fastest Speed 50 | 50 80 100 130 Average Speed 120 | 88 105 121 130 Slowest Speed 300 | 160 300 130 130 Overloaded Moves . | . . . . Propulsion Burnouts . | . . . . Robots Hopped . | . . . . Cave-ins Triggered . | . . . . Exploration Rate (%) 61 | 5 84 71 84 Regions Visited 3 Branch Regions 2 Pre-discovered Areas . | . . . . Known Exits Taken . | . . . . Unknown Exits Taken 3 | 1 1 1 . Scrap Searched 8 | . . 3 5 Spaces Dug 15 | . 10 5 . Terrain Destroyed 45 | . 16 29 . Melee . | . . . . Projectile 13 | . . 13 . AOE 32 | . 16 16 . Terrain Rammed . | . . . . Walls Destroyed . | . . . . Machines Disabled . | . . . . Actions | -11 -10 -10 -8 --------- Run | Yrd Mat Sub Scr Total 3898 | 98 971 1565 1264 Wait 276 | 1 84 82 109 Move 3303 | 71 745 1341 1146 Hop . | . . . . Pick Up 28 | 6 18 4 . Fast Attach 45 | 7 25 5 8 Attach 5 | . 3 2 . Detach . | . . . . Swap 27 | 1 10 16 . Drop 31 | 1 17 13 . Fire 182 | 11 69 101 1 Melee 1 | . . 1 . Ram . | . . . . Kick . | . . . . Crush . | . . . . Escape Stasis . | . . . . Rewire . | . . . . Trap . | . . . . Miscellaneous . | . . . . Route ------- -11/Scrapyard -10/Materials (discovered 5 exits: [*Mat x2] / [*Min x2] / *Sub) -10/Subcaves (discovered 3 exits: [*Mat x2] / *Scr) -8/Scraptown (discovered 1 exit: [*Fac]) History --------- Turn | Location | Event 16 | -11/Scrapyard | Discovered new exit (range 15) 114 | -11/Scrapyard | Entered Materials 320 | -10/Materials | Build established: Mutant 439 | -10/Materials | Discovered new exit (range 10) 518 | -10/Materials | Discovered new exit (range 11) 606 | -10/Materials | Discovered new exit (range 14) 663 | -10/Materials | Discovered new exit (range 11) 852 | -10/Materials | Discovered new exit (range 15) 938 | -10/Materials | Repaired Beam Cannon 1253 | -10/Materials | Entered Subcaves 1254 | -10/Subcaves | Approached by a straggling Scientist 1448 | -10/Subcaves | Learned Materials terminal intel 1454 | -10/Subcaves | Learned Materials emergency access door positions 1470 | -10/Subcaves | Discovered new exit (range 10) 1615 | -10/Subcaves | Discovered new exit (range 5) 1689 | -10/Subcaves | Visited 4L-MR0's lab 1703 | -10/Subcaves | Found Cargo Legs 1704 | -10/Subcaves | Attached Cargo Legs, gained temporary slots: Utility x2 1876 | -10/Subcaves | Core integrity fell below 50% 1917 | -10/Subcaves | A swath of the cavern ceiling suddenly collapsed 2219 | -10/Subcaves | Core integrity fell below 20% 2274 | -10/Subcaves | A swath of the cavern ceiling suddenly collapsed 3088 | -10/Subcaves | Scientist uncovered a shortcut to Scraptown 3241 | -10/Subcaves | Entered Scraptown 3327 | -8/Scraptown | Visited UFD Registry 3327 | -8/Scraptown | Registered with UFD as "Flashnade" 3369 | -8/Scraptown | Visited Scrapoid Research Area 3407 | -8/Scraptown | Visited Junk Cannon Lab 3456 | -8/Scraptown | Visited Cartography Club 3470 | -8/Scraptown | Visited Abandonware Association 3479 | -8/Scraptown | Learned abandonware demo "OVRCLOCK.EXE" 3486 | -8/Scraptown | Learned abandonware demo "TRNCOAT.EXE" 3518 | -8/Scraptown | Visited Research Penetration Think Tank 3550 | -8/Scraptown | Visited Junk Repository 3598 | -8/Scraptown | Visited Chapter 10 3616 | -8/Scraptown | Visited Infowarlord's Domain 3728 | -8/Scraptown | Visited The Evicted 3760 | -8/Scraptown | Visited Comm Corps 3799 | -8/Scraptown | Heard Great Nut preacher, LISTEN AND RECITE! 3832 | -8/Scraptown | Scanned Subdweller tech in exchange for log data 3836 | -8/Scraptown | Learned Research non-interactive machine intel 3837 | -8/Scraptown | Learned Factory stockpile data 3838 | -8/Scraptown | Learned location of 1 exit from Factory 3855 | -8/Scraptown | Discovered new exit (range 11) 4211 | -8/Scraptown | Visited Shadow of the Wyrm 4326 | -8/Scraptown | Delivered Scrap Shield to a Scientist 4673 | -8/Scraptown | Visited Cyclists 4683 | -8/Scraptown | Entered Cyclist Reading Room 4720 | -8/Scraptown | Visited Red Mages 4737 | -8/Scraptown | Found Relay Coupler [Proto] 4850 | -8/Scraptown | Attacked by Scraptown defenders 4853 | -8/Scraptown | Destroyed by 6C-1VX(p) with EM Pulse Gun Last Messages --------------- 04751_ Acquired Relay Coupler [Hunter]. 04751_ Relay Coupler [Hunter] fries itself. 04754_ Acquired Relay Coupler [Specialist]. 04754_ Relay Coupler [Specialist] fries itself. 04761_ Acquired Relay Coupler [Behemoth]. 04761_ Relay Coupler [Behemoth] fries itself. 04764_ Acquired Relay Coupler [Hunter]. 04764_ Relay Coupler [Hunter] fries itself. 04850_ ANNOUNCEMENT: Intruder alert! Defend Scraptown! 04851_ Triborg activates siege mode. 04851_ 6C-1VX(p): "0b10-spawn!" 04851_ Penetrated by Bolt. 04851_ Critical hit (Burn: +50). 04851_ Penetrated by Siege Slug. 04851_ EMP Blaster destroyed. 04851_ Beam Cannon destroyed. 04851_ Knocked back. 04853_ Penetrated by Siege Slug. 04853_ Knocked back. 04853_ Penetrated by Siege Slug. Map ----- +----------------------------------------------------+ | #???????#" | | #???????#" | | #???????#" | | #???????#" | | ################# #???#####" | | #???????????????# #???#"""" """"""" | | #???????????????# #???#"""" """"""" | | #???????????????# #???#"""" ""##### | | #???????????????# #???#"""" ""#???? | | #???????????????# #???#"""" ""#??? | | #???????????###?# ###?#"""" ""#? " | | #????""?"""""""?# ""#"#"""" ""# "" | | #???""""""X""""?# """"#"""" ""# " | | #???"" " " ""# ""#######" "" | | #???"" ""# ###?????#" "" | | #???"" ""# j #########" ""# " | | #????" ""# ""# "" | | #????? ""# ""#? " | | #??????? "# ""#?? | | #????????? ?# j ""#??? | | ############ #### TT x ""##### | | TT """"""" | | """"""" | | p | | | | @ | | % #""""#" | | % #????#" | | h #????#"""""" """""" | | ############# #########; ####????####### ###### | | ?????????# #?## #???????????# #??? | | ????????# #??# #???????????# #??? | | ???????# #??# #???????????#! !#??? | | ""??????# #??# #???????????#! !#??? | | """#?????# #??# #???????????#! !#??? | | ""#?????#" "#??# #???????????#! !#??? | | "??????## " " ##??# #???????????#! !#??? | | " ????????# # # #???# #???????????# #??? | | """""????????########???# #???????????#######??? | | #?##????????????????????# #????????????????????? | | ????????????????????????# #????????????????????? | | ???????????????????###### #????????????????????? | | ?????????????????"""""""" #???????#####???###### | | ????????????????""" """"" #???????? ??#"""## | | ????????##?????""" " "" #?????????"""" ## ""## | | ???????? ?? #????????""""" | | ##????## #?????" "" "" " #????????""""" | | """???"" "#???????""""""" #????????""""" | | ""??""" "#????????"""""" #?????????"""" ##"""## | | "?#""" "#?????????##### #???????? ??#"""## | +----------------------------------------------------+ Best States ------------- Heat Dissipation 35 Energy Generation 15 Energy Capacity 250 Matter Stores 300 Matter Capacity 300 Sight Range 21 Terrain Scan Density 10 Armor Coverage 150 Evasion (%) 55 Recoil Reduction 1 Item Schematics ----------------- Hcp. Storage Unit | -10/Materials | Hacked Robot Schematics ------------------ None Fabricated ------------ Nothing Repaired ---------- Beam Cannon | 6% | -10/Materials Alien Tech Used ----------------- None Achievements -------------- None Challenges ------------ None Game ------ Seed HeatDeepChip Manual? 0 Play Time 00:38:28 Cumulative 550.7 hours Start 2024.11.14 @ 19:16:54 End 2024.11.15 @ 12:14:49 Sessions 3 Manual Loads 0 Difficulty Rogue Special Mode None Game No. 210 Rogue 205 Adventurer 4 Explorer 1 Win Type - Total 7 Types 4/1/0/1/0/1/0/0/0 Lore% 89 Gallery% 92 Achievement% 87 Wizard Run 0 Options --------- Layout 0 ASCII 0 Keyboard 0 Movement Numpad Keybinds 0 Fullscreen 2 Font 18/CogNarrow Map View 76x50 Zoom Use 0% Tactical HUD 1 Map Filters NONE Filters NONE Steam 1 RUN: c48492c9-4b20-48a3-96e4-ba6815f2df73